Cogmind - Beta 11.1 @@@ ROGUE MODE // 2022.05.12 @ 11:48:13 Player: ILikeVoltron Result: Destroyed by as-79562 with Assembled Heavy Rifle Performance ------------- Evolutions (0) 0 Regions Visited (2) 400 Robots Destroyed (11) 55 Value Destroyed (141) 141 Prototype IDs (0) 0 Alien Tech Used (0) 0 Bonus (0) 0 TOTAL SCORE: 596 Bonus ------- None Cogmind --------- Core Integrity 0/250 Matter 295/300 Energy 98/100 System Corruption 15% Temperature Cool (0) Movement Core (50) Location -10/Mines Parts ------- > --- POWER (1) -------- (None) > --- PROPULSION (2) --- (None) > --- UTILITY (2) ------ (None) > --- WEAPON (2) ------- (None) > --- INVENTORY (5) ---- Improved Heat Sink Medium Matter Pod (100) Medium Matter Pod (16) Light Armor Plating Recalibrator Peak State ------------ > --- POWER ------------ Light Nuclear Core > --- PROPULSION ------- Aluminum Leg Aluminum Leg > --- UTILITY ---------- Large Storage Unit Recalibrator > --- WEAPON ----------- EM Pulse Gun Mining Claw > --- INVENTORY -------- Light Ion Engine Aluminum Leg Improved Heat Sink Medium Matter Pod Medium Matter Pod Improved Terrain Scanner Light Armor Plating Tractor Beam Small Laser Light Assault Rifle [Rating: 13] Favorites ----------- Power Light Nuclear Core Engine Ion Engine Power Core Light Nuclear Core Propulsion Aluminum Leg Leg Aluminum Leg Utility Large Storage Unit Device Recalibrator Storage Large Storage Unit Processor Targeting Computer Weapon EM Pulse Gun Energy Gun EM Pulse Gun Ballistic Gun Light Assault Rifle Slashing Weapon Mining Claw Build | -11 -10 -10 ------- Run | Scr Mat Min Slots Evolved . | . . . Power . | . . . Propulsion . | . . . Utility . | . . . Weapon . | . . . Parts Attached 13 | 1 8 4 Power 1 | . 1 . Engine . | . . . Core 1 | . 1 . Reactor . | . . . Propulsion 1 | . . 1 Treads . | . . . Leg 1 | . . 1 Wheel . | . . . Hover . | . . . Flight . | . . . Utility 9 | 1 6 2 Device 3 | 1 2 . Storage 3 | . 1 2 Processor 3 | . 3 . Hackware . | . . . Protection . | . . . Artifact . | . . . Weapon 2 | . 1 1 Energy Gun 1 | . . 1 Energy Cannon . | . . . Ballistic Gun . | . . . Ballistic Cannon . | . . . Launcher . | . . . Special Weapon . | . . . Impact Weapon . | . . . Slashing Weapon 1 | . 1 . Piercing Weapon . | . . . Special Melee Weapon . | . . . Unidentified Prototypes . | . . . Parts Lost 7 | . . 7 Power 1 | . . 1 Propulsion 3 | . . 3 Utility 1 | . . 1 Weapon 2 | . . 2 Highest Loss Streak 7 | . . 7 To Critical Strikes . | . . . Average Slot Usage (%) 97 | . 99 84 Engine 1 | . 1 . Core 12 | . 12 12 Leg 27 | . 28 23 Device 3 | . 3 . Storage 13 | . 14 12 Processor 10 | . 10 11 Energy Gun 13 | . 14 11 Ballistic Gun 7 | . 8 . Slashing Weapon 6 | . 5 12 Naked Turns 16 | . . 16 Heaviest Build 30 | 14 30 29 Greatest Support 20 | 20 20 20 Greatest Overweight (x) 2 | . 1 2 Average Overweight (x) . | . . . Largest Inventory Capacity 25 | 8 15 25 Average Capacity 13 | 8 13 14 Most Carried 15 | 7 14 15 Average Carried 10 | 6 9 13 Final Capacity 15 | 8 15 5 Final Carried 14 | 7 14 5 Class Distribution -------------------- 100% | Mutant Dominant Class ---------------- Mutant | -10/Materials Mutant | -10/Mines Resources | -11 -10 -10 ----------- Run | Scr Mat Min Matter Collected 325 | 214 94 17 Remotely 10 | 10 . . Salvage Created 184 | 94 90 . Parts 16 | 5 11 . Haulers Intercepted . | . . . Recyclers Shooed . | . . . Parts Field Recycled . | . . . Retrieved Matter . | . . . Parts Self-Destructed . | . . . Prevented . | . . . Kills | -11 -10 -10 ------- Run | Scr Mat Min Combat Hostiles Destroyed 6 | . 6 . AOE 6 | . 6 . Classes Destroyed 6 | 1 5 . Worker 1 | . 1 . Builder 1 | . 1 . Recycler 1 | 1 . . Mechanic 1 | . 1 . Watcher 1 | . 1 . Swarmer 6 | . 6 . Best Kill Streak 4 | 1 4 . Combat Bots Only 3 | . 3 . Max Kills in Single Turn 4 | 1 4 . Gunslinging . | . . . Exploded 3 | . 3 . Melee . | . . . Uniques/NPCs Destroyed . | . . . Combat | -11 -10 -10 -------- Run | Scr Mat Min Damage Taken 844 | . 257 587 Core 255 | . 47 208 Absorbed by Shields . | . . . Core Remaining (%) 100 | 100 . . Volleys Fired 12 | 4 5 3 Largest 2 | 2 2 1 Hottest 60 | 60 60 40 Shots Fired 19 | 8 8 3 Gun 19 | 8 8 3 Cannon . | . . . Launcher . | . . . Special . | . . . Kinetic 7 | 4 3 . Thermal 2 | . . 2 Explosive . | . . . Electromagnetic 10 | 4 5 1 Robot Hit Streak 3 | 1 3 2 Robot Miss Streak 5 | 2 5 1 Penetration Max . | . . . Secondary Targets . | . . . Shots Hit Robots 11 | 3 6 2 Core Hits 12 | 2 9 1 Critical Kills . | . . . Critical Parts Destroyed . | . . . Critical Strikes . | . . . Melee Attacks 13 | . 13 . Impact . | . . . Slashing 13 | . 13 . Piercing . | . . . Sneak Attacks 1 | . 1 . Combat Hostiles . | . . . Follow-up Attacks . | . . . Damage Inflicted 949 | 29 899 21 Guns 80 | 29 30 21 Cannons . | . . . Explosions 770 | . 770 . Melee 99 | . 99 . Ramming . | . . . Kinetic 24 | 16 8 . Thermal 90 | . 69 21 Explosive 701 | . 701 . Electromagnetic 35 | 13 22 . Impact . | . . . Slashing 99 | . 99 . Piercing . | . . . Highest Corruption 15 | . . 15 Average Corruption 10 | . . 10 Corruption Purged . | . . . Corruption Blocked . | . . . Effects 1 | . . 1 Data Loss (minor) 1 | . . 1 Overload Shots . | . . . Overflow Damage 106 | . 106 . Projectiles . | . . . Explosions 102 | . 102 . Melee 4 | . 4 . Knockbacks . | . . . Impact . | . . . Kinetic . | . . . Secondary . | . . . Self-Inflicted Damage 103 | . 103 . Shots 3 | . 3 . Rammed . | . . . Targets Rammed . | . . . Kicked . | . . . Crushed . | . . . Highest Temperature 24 | 20 24 4 Average Temperature 12 | 15 12 2 Received Heat Transfer 113 | . 24 89 Siege Activations . | . . . Robots Corrupted . | . . . Combat Hostiles . | . . . Parts Fried . | . . . Impact Corruptions . | . . . Robots Melted . | . . . Combat Hostiles . | . . . Parts Melted . | . . . Heat Transferred 150 | . 100 50 Parts Sabotaged . | . . . Parts Stolen . | . . . Parts Stripped . | . . . Power Chain Reactions 1 | . 1 . Missiles Intercepted . | . . . Alert | -11 -10 -10 ------- Run | Scr Mat Min Peak Influence 392 | 5 392 114 Initial 114 | . 3 114 Average 128 | 3 135 99 Maximum Alert Level 1 | . 1 . Low Security (%) 67 | 100 61 100 Level 1 32 | . 38 . Level 2 . | . . . Level 3 . | . . . Level 4 . | . . . Level 5 . | . . . High Security . | . . . Max Security . | . . . Squads Dispatched 2 | . 2 . Investigation 2 | . 2 . Extermination . | . . . Reinforcement . | . . . Assault . | . . . Garrison . | . . . Intercept . | . . . Searches Triggered . | . . . Construction Impeded . | . . . Haulers Reinforced . | . . . Active Scanning Responses . | . . . Cargo Convoy Interrupts . | . . . Stealth | -11 -10 -10 --------- Run | Scr Mat Min Distress Signals 1 | . 1 . Communications Jammed . | . . . Distress Signals . | . . . Times Spotted 26 | . 14 12 Peak Tracking Total 11 | . 4 11 Tactical Retreats 2 | . 1 1 Traps | -11 -10 -10 ------- Run | Scr Mat Min Traps Triggered 1 | . 1 . Indirectly . | . . . Trap Hack Attempts . | . . . Triggered . | . . . Disarmed . | . . . Reprogrammed . | . . . Reused . | . . . Traps Extracted . | . . . Installed . | . . . Triggered . | . . . Machines | -11 -10 -10 ---------- Run | Scr Mat Min Machines Disabled 4 | . 4 . Max in Single Turn 2 | . 2 . Machines Sabotaged . | . . . Garrisons Compromised . | . . . Overloaded Fab Kills . | . . . Hacking | -11 -10 -10 --------- Run | Scr Mat Min Machines Accessed 9 | . 9 . Terminals 7 | . 7 . Fabricators . | . . . Repair Stations . | . . . Recycling Units 2 | . 2 . Scanalyzers . | . . . Garrison Access . | . . . Total Hacks 18 | . 18 . Successful 12 | . 12 . Failed 6 | . 6 . Catastrophic 1 | . 1 . Database Lockouts . | . . . Manual 7 | . 7 . Terminals 14 | . 14 . Fabricators . | . . . Repair Stations . | . . . Recycling Units 4 | . 4 . Scanalyzers . | . . . Garrison Access . | . . . Terminal Hacks 5 | . 5 . Part Schematic 1 | . 1 . Robot Analysis 1 | . 1 . Locate Traps 1 | . 1 . Zone Layout 2 | . 2 . Fabricator Hacks . | . . . Repair Station Hacks . | . . . Recycling Unit Hacks 4 | . 4 . Process 1 | . 1 . Report Inventory 2 | . 2 . Retrieve Matter 1 | . 1 . Scanalyzer . | . . . Garrison Access Hacks . | . . . Unauthorized Hacks 3 | . 3 . Terminals 3 | . 3 . Botnet 3 | . 3 . Fabricators . | . . . Repair Stations . | . . . Recycling Units . | . . . Scanalyzers . | . . . Garrison Access . | . . . Data Cores Recovered . | . . . Used . | . . . Hacking Detections 7 | . 7 . Full Trace Events 1 | . 1 . Feedback Events . | . . . Feedback Blocked . | . . . Robot Schematics Acquired . | . . . Robots Built . | . . . Authchips . | . . . Time . | . . . Total Robot Build Rating . | . . . Part Schematics Acquired 1 | . 1 . Parts Built . | . . . Authchips . | . . . Time . | . . . Total Part Build Rating . | . . . Parts Repaired . | . . . Time . | . . . Parts Recycled . | . . . Recycled Matter 188 | . 188 . Retrieved Matter 188 | . 188 . Retrieved Components . | . . . Parts Scanalyzed . | . . . Part Schematics Acquired . | . . . Parts Damaged . | . . . Bothacking | -11 -10 -10 ------------ Run | Scr Mat Min Used RIF Installer . | . . . Robots Hacked . | . . . Non-combat . | . . . Combat . | . . . Robot Hacks Applied . | . . . Relay Couplers Released . | . . . Fabnet Peak Effective % . | . . . Robots Rewired . | . . . Allies Hacked . | . . . Hacks Repelled . | . . . Allies | -11 -10 -10 -------- Run | Scr Mat Min Total Allies 1 | . . 1 Largest Group 1 | . . 1 Highest-Rated Group 31 | . . 31 Highest-Rated Ally 31 | . . 31 Total Orders . | . . . Ally Attacks 12 | . . 12 Total Damage 167 | . . 167 Kills 3 | . . 3 Allies Corrupted . | . . . Allies Melted . | . . . Intel | -11 -10 -10 ------- Run | Scr Mat Min Robot Analysis Total 1 | . 1 . Derelict Logs Recovered . | . . . Drone Launches . | . . . Drone Recoveries . | . . . Exploration | -11 -10 -10 ------------- Run | Scr Mat Min Turns Passed 1374 | 35 1172 167 Spaces Moved 721 | 18 601 102 Core 34 | . . 34 Treads . | . . . Legs 687 | 18 601 68 Wheels . | . . . Hover . | . . . Flight . | . . . Fastest Speed 50 | 120 120 50 Average Speed 168 | 120 174 147 Slowest Speed 260 | 120 190 260 Overloaded Moves . | . . . Propulsion Burnouts . | . . . Robots Hopped . | . . . Cave-ins Triggered . | . . . Exploration Rate (%) 39 | 2 81 36 Regions Visited 2 Branch Regions 1 Pre-discovered Areas . | . . . Known Exits Taken . | . . . Unknown Exits Taken 2 | 1 1 . Scrap Searched 1 | . . 1 Spaces Dug 5 | . 5 . Terrain Destroyed 77 | . 77 . Melee 5 | . 5 . Projectile . | . . . AOE 72 | . 72 . Terrain Rammed . | . . . Walls Destroyed . | . . . Machines Disabled . | . . . Actions | -11 -10 -10 --------- Run | Scr Mat Min Total 836 | 23 698 115 Wait 53 | . 48 5 Move 719 | 17 600 102 Hop . | . . . Pick Up 12 | 1 10 1 Fast Attach 7 | 1 6 . Attach 2 | . . 2 Detach 6 | . 6 . Swap 4 | . 2 2 Drop 8 | . 8 . Fire 12 | 4 5 3 Melee 13 | . 13 . Ram . | . . . Kick . | . . . Crush . | . . . Escape Stasis . | . . . Rewire . | . . . Trap . | . . . Miscellaneous . | . . . Route ------- -11/Scrapyard -10/Materials (discovered 4 exits: [*Mat x3] / [*Min]) -10/Mines History --------- Turn | Location | Event 13 | -11/Scrapyard | Discovered new exit (range 3) 36 | -11/Scrapyard | Entered Materials 110 | -10/Materials | Met 8R-AWN 130 | -10/Materials | Discovered new exit (range 8) 188 | -10/Materials | Discovered new exit (range 16) 317 | -10/Materials | Build established: Mutant 629 | -10/Materials | Discovered new exit (range 17) 1072 | -10/Materials | Discovered new exit (range 14) 1208 | -10/Materials | Entered Mines 1209 | -10/Mines | Followed 8R-AWN into the Mines 1251 | -10/Mines | Met a Derelict bent on vengeance 1256 | -10/Mines | Received a Mining Laser from a helpful Derelict 1317 | -10/Mines | Assembled infested the area 1322 | -10/Mines | Assisted by a Guerilla fighting off Assembled 1359 | -10/Mines | System corruption reached 10% 1359 | -10/Mines | Released all parts (2) 1362 | -10/Mines | Core integrity fell below 50% 1374 | -10/Mines | Core integrity fell below 20% 1375 | -10/Mines | Destroyed by as-79562 with Assembled Heavy Rifle Last Messages --------------- 01337_ Aluminum Leg destroyed. 01339_ EM Pulse Gun destroyed. 01341_ XA-UU4(g) knocked back. 01341_ as-44457 destroyed. 01342_ Aluminum Leg destroyed. 01345_ Visual Processing Unit destroyed. 01345_ System corrupted by crushing effect (+5). 01345_ Knocked back. 01346_ as-12323 destroyed. 01348_ R-06 Scavenger destroyed. 01349_ as-93094 suffers critical hit (Burn). 01350_ Lgt. Nuclear Core destroyed. 01353_ XA-UU4(g) destroyed. 01358_ Sml. Laser destroyed. 01358_ Aluminum Leg destroyed. 01358_ System corrupted by crushing effect (+5). 01359_ Released Lrg. Storage Unit. 01359_ Released Mining Claw. 01363_ as-76486 destroyed. 01371_ System corrupted: Component data lost. Map ----- +----------------------------------------------------+ | ????????????????????????# ##???# #??????????## | | ????????????????????????# ##?# #??????????? | | ?????????????????####???# ## ????????????? | | ??????????????#### #?## ??????????????? | | ???????????????%* ## #???????????????? | | ????????????????# #????????????????? | | ?????????????????# #??????????????????? | | ????????????????## #??????????????????? | | ????????????????# %% ####???????????????? | | ?????????????# [! ## ###?????????????? | | ????????????# !%* ???## % ##????????????? | | ???????????# % #?????## ############## | | ???????????# ??????### !*%! | | ???????????# ???????## !% ######### #### | | ????????????????????# !!! ## #???????# #??? | | ????????????????????# !!*/ ##### #???????#|#??? | | ????????????????????##!![ ##???# #?????## ##?? | | ?????????????????????## #????# #???##= !##? | | ??????????????????????#% ##???# #???# #? | | ??????????????????????# #???## #???## # | | ??????????????????????# #????## ##????## | | ??????????????????????# #?????#####??????## | | ??????????????????????# ##?????????????????# | | ??????????????????????# aa#??????????????????# | | ??????????????????????# ##?????????????????# | | ??????????????????????# @a##????????????????## # | | ??????????????????????# a #??????????????????### | | ??????????????????????# #????????????????????? | | ??????????????????????## a ##???????????????????? | | ??????????????????????## aa##??????????????????? | | ??????????????????##### #??????????????????? | | ?????????????????## #??????????????????? | | ?????????????????# #??????????????????? | | ?????????????????# ## #??????????????????? | | ?????????????????# #### ##??????????????????? | | ?????????????????# #??#####???????????????????? | | ?????????????????## ##??????????????????????????? | | ??????????????????###????????????????????????????? | | ?????????????????????????????????????????????????? | | ?????????????????????????????????????????????????? | | ?????????????????????????????????????????????????? | | ?????????????????????????????????????????????????? | | ?????????????????????????????????????????????????? | | ?????????????????????????????????????????????????? | | | | | | | | | | | | | +----------------------------------------------------+ Best States ------------- Heat Dissipation 25 Energy Generation 14 Energy Capacity 250 Matter Stores 300 Matter Capacity 300 Sight Range 18 Terrain Scan Range 16 Terrain Scan Density 10 Evasion (%) 55 Targeting Accuracy 5 Item Schematics ----------------- Lrg. Storage Unit | -10/Materials | Hacked Robot Schematics ------------------ None Fabricated ------------ Nothing Alien Tech Used ----------------- None Achievements -------------- None Challenges ------------ None Game ------ Seed LegHeartFilter Manual? 0 Play Time 00:13:33 Cumulative 59.0 hours Start 2022.05.12 @ 11:37:08 End 2022.05.12 @ 11:48:13 Sessions 1 Manual Loads 0 Difficulty Rogue Special Mode None Game No. 78 Rogue 74 Adventurer 0 Explorer 4 Win Type - Total 0 Types 0/0/0/0/0/0/0/0/0 Lore% 18 Gallery% 34 Achievement% 28 Wizard Run 0 Options --------- ASCII 0 Keyboard 1 Movement Arrows Keybinds 0 Fullscreen 1 Font 24/Smallcaps Map View 113x50 Tactical HUD 1 Map Filters NONE Filters NONE Steam 1 RUN: c5fc2812-f186-47ff-9556-edafe109b80b